[Event "3rd Tal Heraklion-IM 2022"]
[Site "Heraklion"]
[Date "2022.04.25"]
[Round "1.1"]
[White "Anagnostopoulos, Konstantinos"]
[Black "Kotsinis, Alexandros"]
[Result "1-0"]
[ECO "C50"]
[WhiteElo "2340"]
[BlackElo "2055"]
[Annotator "TA"]
[PlyCount "65"]
[EventDate "2022.04.18"]
[EventType "tourn"]
[EventCountry "GRE"]
[SourceTitle "playchess.com"]
[Source "ChessBase"]
[SourceQuality "1"]
[TimeControl "40/5400+30:1800+30"]

{[%evp 12,65,9,2,11,11,13,-14,0,-19,-22,-14,1,-40,0,-11,-11,-14,0,0,8,8,8,14,6,6,8,4,10,11,35,8,15,15,53,53,331,330,316,318,320,311,354,332,387,376,410,314,502,475,482,478,1122,1108,1908,625]} 1. e4 {[%emt 0:00:04]} e5 {[%emt 0:00:04]} 2. Nf3 {[%emt 0:00:04]} Nc6 {[%emt 0:00:09]} 3. Bc4 {[%emt 0:00:22]} Nf6 {[%emt 0:00:07]} 4. d3 {[%emt 0:00:21]} Bc5 {[%emt 0:00:09]} 5. Nc3 {[%emt 0:00:19]} h6 {[%emt 0:02:07]} 6. Be3 {[%emt 0:02:10]} Bb4 {[%emt 0:08:38]} 7. O-O {[%emt 0:01:04]} Bxc3 {[%emt 0:01:46] C50: Hungarian Defence and Giuoco Pianissimo.} 8. bxc3 {[%emt 0:00:06]} O-O {[%emt 0:00:39]} 9. d4 {[%emt 0:17:09] [#]} Nxe4 $146 {[%emt 0:14:37] The position is equal.} ({Predecessor:} 9... d6 10. dxe5 dxe5 11. h3 Re8 12. Qe2 a6 13. Rfd1 Nd7 14. Nh2 Qh4 15. Qf3 Nf6 {0-1 (46) Nuytemans,M-Gernay,T Belgium 1998}) 10. dxe5 {[%emt 0:03:23]} d6 {[%emt 0:03:12]} 11. exd6 {[%emt 0:10:49]} cxd6 {[%emt 0:04:25]} 12. Qd5 {[%emt 0:15:51]} Nf6 {[%emt 0:15:55] Pair of Knights!} 13. Qd3 {[%emt 0:00:11]} Bg4 {[%emt 0:02:26] [#] Threatens to win with ...Bxf3.} 14. Bf4 {[%emt 0:06:41]} Bxf3 {[%emt 0:14:05]} 15. Qxf3 {[%emt 0:00:06]} Ne5 {[%emt 0:00:09]} 16. Bxe5 {[%emt 0:00:09]} dxe5 {[%emt 0:00:01]} 17. Qxb7 {[%emt 0:00:10]} Qc8 {[%emt 0:03:24]} 18. Qa6 {[%emt 0:02:23]} Qc5 {[%emt 0:04:19]} 19. Rad1 {[%emt 0:07:56]} Rac8 {[%emt 0:12:05]} 20. Bb3 {[%emt 0:00:28]} e4 {[%emt 0:00:55]} 21. Rfe1 {[%emt 0:09:04]} Rc6 {[%emt 0:01:23]} 22. Qa4 {[%emt 0:02:18]} Re8 {[%emt 0:04:27]} 23. Qd4 {[%emt 0:01:43] [#] Ba4 is the strong threat.} Qh5 $2 {[%emt 0:02:12][%mdl 8192] Loses the game.} (23... Rec8 $14) 24. Ba4 $18 {[%emt 0:02:05]} Rce6 {[%emt 0:03:53]} 25. Bxe8 {[%emt 0:00:07]} ({Not} 25. Qxa7 R8e7 26. Qd4 Re5 $16) 25... Rxe8 {[%emt 0:00:04]} 26. f3 {[%emt 0:04:05]} Re6 {[%emt 0:01:45]} 27. fxe4 {[%emt 0:07:10]} Nxe4 {[%emt 0:00:13]} 28. Rd3 {[%emt 0:02:31]} f5 {[%emt 0:00:22]} 29. Rf1 {[%emt 0:02:37]} Rg6 {[%emt 0:00:38]} (29... Kh7 $142 30. Qd5 Rf6) 30. Qd5+ {[%emt 0:01:10] White is clearly winning.} Kh7 {[%emt 0:00:04]} 31. Qxf5 {[%emt 0:00:21]} Ng5 {[%emt 0:00:45]} (31... Qe2 $142 32. g3 a6) 32. Rg3 {[%emt 0:02:34]} Kh8 {[%emt 0:00:22]} 33. Qg4 {[%emt 0:00:33] Weighted Error Value: White=0.12 (very precise) /Black=0.44} 1-0

[Event "3rd Tal Heraklion-IM 2022"]
[Site "Heraklion"]
[Date "2022.04.25"]
[Round "1.2"]
[White "Cmiel, Thorsten"]
[Black "Sandalakis, Nikolaos"]
[Result "1/2-1/2"]
[ECO "C56"]
[WhiteElo "2079"]
[BlackElo "2240"]
[Annotator "TA"]
[PlyCount "88"]
[EventDate "2022.04.18"]
[EventType "tourn"]
[EventCountry "GRE"]
[SourceTitle "playchess.com"]
[Source "ChessBase"]
[SourceQuality "1"]
[TimeControl "40/5400+30:1800+30"]

{[%evp 18,88,14,18,18,16,17,24,-20,18,21,14,32,26,20,30,36,19,54,35,37,37,56,47,66,106,142,70,156,143,175,180,181,181,214,124,122,119,143,146,180,116,119,118,118,22,20,22,12,28,38,34,79,85,73,77,103,0,0,0,0,0,0,0,0,0,0,0,0,0,0,0,0]} 1. e4 {[%emt 0:00:22]} e5 {[%emt 0:00:12]} 2. Nf3 {[%emt 0:00:32]} Nc6 {[%emt 0:00:08]} 3. Bc4 {[%emt 0:06:33]} Nf6 {[%emt 0:00:29]} 4. d4 {[%emt 0:04:33]} exd4 {[%emt 0:00:52]} 5. O-O {[%emt 0:04:20][%cal Bh1f1,Bf1e1,Be1e4][%mdl 32]} Nxe4 {[%emt 0:00:34]} 6. Re1 {[%emt 0:00:07]} d5 {[%emt 0:00:07]} 7. Bxd5 {[%emt 0:00:05]} Qxd5 {[%emt 0:00:06]} 8. Nc3 {[%emt 0:00:05][%cal Bb1c3,Bc3d1,Bd1e3,Be3c4][%mdl 32]} Qd8 {[%emt 0:04:52]} 9. Rxe4+ {[%emt 0:05:36]} Be7 {[%emt 0:00:33]} 10. Nxd4 {[%emt 0:00:43]} f5 {[%emt 0:00:36] C56: Two Knights: 4 d4 exd4 5 0-0 Nxe4.} 11. Rf4 {[%emt 0:03:06]} (11. Qh5+ g6 12. Nxc6 bxc6 13. Rxe7+ Qxe7 $17) 11... O-O {[%emt 0:00:17]} 12. Nxc6 {[%emt 0:01:53]} Qxd1+ {[%emt 0:00:19] White has an edge.} 13. Nxd1 {[%emt 0:00:02]} bxc6 {[%emt 0:00:07]} 14. Ra4 {[%emt 0:03:26]} Bd6 {[%emt 0:25:06] [#]} 15. Ne3 $146 {[%emt 0:19:46]} ({Predecessor:} 15. Nc3 Bd7 16. Be3 Rfb8 17. Rb1 a5 18. Rd4 Rb4 19. Rdd1 Rab8 20. b3 f4 21. a3 {½-½ (54) Huybrecht,F-Reuter Belgium 1993}) 15... Re8 {[%emt 0:19:16]} 16. Bd2 {[%emt 0:01:52]} Bd7 {[%emt 0:12:00]} 17. Nc4 {[%emt 0:06:31]} Bf8 {[%emt 0:07:17]} 18. Re1 {[%emt 0:04:22]} Rxe1+ {[%emt 0:02:15]} 19. Bxe1 {[%emt 0:00:02]} Re8 {[%emt 0:18:56][%cal Re8e1]} 20. Kf1 {[%emt 0:08:44]} Re4 {[%emt 0:02:59] aiming for ...c5.} 21. b3 {[%emt 0:11:16]} c5 {[%emt 0:00:47]} 22. Ra5 {[%emt 0:00:33]} (22. Rxa7 $16 {And now f3 would win.} Bb5 23. f3 (23. Rxc7 Bxc4+ 24. bxc4 Rxc4 $14) 23... Bxc4+ 24. bxc4 Rxc4 25. c3 (25. Rxc7 Bd6 $11)) 22... Be6 {[%emt 0:01:54]} (22... a6 $14) 23. Nd2 {[%emt 0:00:25]} ({Don't take} 23. Rxa7 $6 Bxc4+ 24. bxc4 Rxc4 $14) 23... Rd4 {[%emt 0:01:08]} 24. Rxa7 {[%emt 0:01:29]} Rd7 {[%emt 0:00:21]} 25. c4 {[%emt 0:02:54]} f4 {[%emt 0:01:14]} 26. Nf3 {[%emt 0:05:38]} (26. f3 $18) 26... Bf5 $16 {[%emt 0:00:07]} 27. Bc3 {[%emt 0:00:30]} Rd1+ {[%emt 0:00:48]} 28. Ke2 {[%emt 0:00:08]} Rc1 {[%emt 0:00:17] [#]} 29. Bd2 {[%emt 0:01:18]} (29. Ne1 $1 $18) 29... Rc2 {[%emt 0:00:39]} 30. Ke1 {[%emt 0:01:27]} Bd6 {[%emt 0:00:21]} 31. g3 {[%emt 0:01:49]} ({Better is} 31. a4 $1 $16) 31... fxg3 $11 {[%emt 0:00:37]} 32. hxg3 {[%emt 0:00:01]} h6 $1 {[%emt 0:00:18]} 33. Be3 {[%emt 0:04:12]} Bg4 {[%emt 0:00:49]} 34. Nh2 {[%emt 0:00:31]} Bh5 {[%emt 0:00:33] [#]} 35. g4 $1 {[%emt 0:00:22]} Bg6 {[%emt 0:00:25] [#]} 36. Nf3 {[%emt 0:00:23]} Rb2 {[%emt 0:00:39]} 37. Bc1 {[%emt 0:00:44]} (37. Ra5 $16) 37... Rb1 {[%emt 0:00:27] The position is equal.} 38. Kd1 {[%emt 0:00:28]} Bf4 {[%emt 0:00:30]} 39. Nd2 {[%emt 0:00:01]} Ra1 {[%emt 0:00:17]} 40. Ra5 {[%emt 0:00:00]} h5 {[%emt 0:00:00]} 41. gxh5 {[%emt 0:02:38]} Bxh5+ {[%emt 0:03:13] This bishop pair is nice.} 42. Kc2 {[%emt 0:01:46]} Bg6+ {[%emt 0:08:00]} 43. Kd1 {[%emt 0:00:18]} Bh5+ {[%emt 0:06:49]} 44. Kc2 {[%emt 0:02:20]} Bg6+ {[%emt 0:00:33] Black defended with fortune.  Weighted Error Value: White=0.17 (very precise) /Black=0.12 (very precise)} 1/2-1/2

[Event "3rd Tal Heraklion-IM 2022"]
[Site "Heraklion"]
[Date "2022.04.25"]
[Round "1.3"]
[White "Rakshitta Ravi"]
[Black "Lirindzakis, Timotheos"]
[Result "1-0"]
[ECO "C84"]
[WhiteElo "2240"]
[BlackElo "2164"]
[Annotator "TA"]
[PlyCount "63"]
[EventDate "2022.04.18"]
[EventType "tourn"]
[EventCountry "GRE"]
[SourceTitle "playchess.com"]
[Source "ChessBase"]
[SourceQuality "1"]
[TimeControl "40/5400+30:1800+30"]

{[%evp 18,63,-21,-14,-24,-41,-29,-23,-19,-16,-13,-16,-24,-43,-30,-36,0,0,47,50,44,41,38,40,57,47,25,33,45,25,69,60,95,95,100,90,109,114,108,104,120,131,137,140,193,188,612,604]} 1. e4 {[%emt 0:00:12]} e5 {[%emt 0:00:28][%cal Be7e5,Be5d4][%mdl 32]} 2. Nf3 {[%emt 0:00:09]} Nc6 {[%emt 0:00:13]} 3. Bb5 {[%emt 0:00:06]} a6 {[%emt 0:00:15]} 4. Ba4 {[%emt 0:00:04]} Nf6 {[%emt 0:00:20][%cal Bg8f6,Bf6e4,Be4c5,Bc5e6][%mdl 32]} 5. d4 {[%emt 0:00:25]} exd4 {[%emt 0:01:05]} 6. O-O {[%emt 0:00:09]} Be7 {[%emt 0:00:41]} 7. e5 {[%emt 0:00:14]} Ne4 {[%emt 0:01:13]} 8. Re1 {[%emt 0:00:15]} Nc5 {[%emt 0:02:11]} 9. Bxc6 {[%emt 0:00:10]} dxc6 {[%emt 0:00:33]} 10. Nxd4 {[%emt 0:00:03]} Ne6 {[%emt 0:13:43] C84: Closed Ruy Lopez: Unusual White 6th moves.} 11. Nf5 {[%emt 0:00:51]} Qxd1 {[%emt 0:01:57]} 12. Rxd1 {[%emt 0:00:02]} Bd8 {[%emt 0:11:53] Black has an edge.} 13. Nc3 {[%emt 0:01:47]} O-O {[%emt 0:01:06]} 14. Ne4 {[%emt 0:16:22]} b6 {[%emt 0:03:07]} 15. Be3 {[%emt 0:02:26]} c5 {[%emt 0:07:13]} 16. Nfg3 {[%emt 0:12:39] [#]} Be7 $146 {[%emt 0:12:35]} ({Predecessor:} 16... Re8 17. f4 Bb7 18. c3 h6 19. Re1 Bh4 20. Re2 Rad8 21. f5 Ng5 22. Bf4 Rd7 {1-0 (63) Peptan,C (2403)-Dragomirescu,A (2208) Napoca 2008}) 17. f4 {[%emt 0:13:11][%cal Bf2f4,Bf4f5,Bf5f6][%mdl 32]} Re8 {[%emt 0:05:13]} (17... Bh4 $11) 18. f5 $14 {[%emt 0:08:24]} Nd4 {[%emt 0:08:33]} 19. Bxd4 {[%emt 0:02:44]} cxd4 {[%emt 0:00:02]} 20. Rxd4 {[%emt 0:01:54]} Bf8 {[%emt 0:05:20]} 21. e6 {[%emt 0:04:58]} fxe6 {[%emt 0:01:16]} 22. f6 {[%emt 0:00:05]} e5 {[%emt 0:08:27]} 23. Rd5 {[%emt 0:01:56]} (23. Rc4 $5 {[%cal Rc4c7]} c5 24. Rc3 $14) 23... c6 {[%emt 0:01:05] [#]} 24. Rf1 $1 {[%emt 0:01:04] White threatens f7+ and mate.} Ra7 {[%emt 0:01:11]} (24... Bc5+ $2 25. Rxc5 (25. Nxc5 gxf6 26. Rd6 bxc5 $18) 25... bxc5 26. f7+ Kf8 27. fxe8=N+ $18) (24... Be6 25. Rxe5) 25. Rd2 {[%emt 0:04:54] Nh5 is the strong threat. White is much more active. The black rooks are badly placed.} Be6 {[%emt 0:01:37]} 26. Nh5 {[%emt 0:01:35]} Kh8 {[%emt 0:02:50]} 27. fxg7+ {[%emt 0:13:34]} ({Don't take} 27. Nxg7 Bxg7 28. fxg7+ Rxg7 $14) 27... Bxg7 {[%emt 0:00:09]} 28. Rd6 {[%emt 0:00:38]} Bc4 {[%emt 0:03:47]} 29. Rf5 {[%emt 0:00:26]} Bd5 {[%emt 0:03:59]} 30. Nef6 {[%emt 0:03:56] Pair of Knights!} Rf8 {[%emt 0:01:37]} (30... Bxf6 $16 31. Nxf6 Re6 32. Rd8+ Kg7 33. Nxd5 cxd5) 31. Nxg7 $18 {[%emt 0:01:33]} ({Much less strong is} 31. Rxe5 $6 Raf7 $16) 31... Rxg7 $2 {[%emt 0:00:33] [#]} (31... Kxg7 32. Rg5+ Kh8) 32. Nxd5 $1 {[%emt 0:00:29] Weighted Error Value: White=0.02 (flawless) /Black=0.38} 1-0

[Event "3rd Tal Heraklion-IM 2022"]
[Site "Heraklion"]
[Date "2022.04.25"]
[Round "1.4"]
[White "Bracker, Arne"]
[Black "Milonakis, Georgios"]
[Result "1/2-1/2"]
[ECO "C84"]
[WhiteElo "2276"]
[BlackElo "2215"]
[Annotator "TA"]
[PlyCount "97"]
[EventDate "2022.04.18"]
[EventType "tourn"]
[EventCountry "GRE"]
[SourceTitle "playchess.com"]
[Source "ChessBase"]
[SourceQuality "1"]
[TimeControl "40/5400+30:1800+30"]

{[%evp 18,97,9,12,6,0,5,13,23,16,27,16,19,26,19,18,26,16,18,18,18,18,18,18,18,18,18,18,18,3,5,2,18,17,18,18,18,18,18,18,25,18,18,18,18,18,18,0,0,0,18,0,10,10,10,0,0,0,0,0,0,0,0,0,0,0,0,0,0,0,0,0,0,0,0,0,8,8,8,0,0,0]} 1. e4 {[%emt 0:00:07]} e5 {[%emt 0:00:12]} 2. Nf3 {[%emt 0:00:13]} Nc6 {[%emt 0:00:20]} 3. Bb5 {[%emt 0:00:14]} a6 {[%emt 0:00:36]} 4. Ba4 {[%emt 0:00:13]} Nf6 {[%emt 0:00:24]} 5. O-O {[%emt 0:00:18]} Be7 {[%emt 0:00:42]} 6. d3 {[%emt 0:00:17]} b5 {[%emt 0:01:40]} 7. Bb3 {[%emt 0:00:11]} d6 {[%emt 0:00:34]} 8. a3 {[%emt 0:00:23]} O-O {[%emt 0:01:35]} 9. Nc3 {[%emt 0:00:09]} Bg4 {[%emt 0:02:09]} 10. Be3 {[%emt 0:00:24]} Nd4 {[%emt 0:00:46] C84: Closed Ruy Lopez: Unusual White 6th moves.} 11. Bxd4 {[%emt 0:00:30]} exd4 {[%emt 0:00:06]} 12. Nd5 {[%emt 0:00:09]} Nxd5 $1 {[%emt 0:01:56][%mdl 4] is currently scoring better than 12...Nd7.} 13. Bxd5 {[%emt 0:00:35]} Rc8 {[%emt 0:00:15]} 14. Bc6 {[%emt 0:03:41]} Bf6 {[%emt 0:05:15]} 15. a4 {[%emt 0:02:48]} Rb8 {[%emt 0:10:19]} 16. axb5 {[%emt 0:18:44]} axb5 {[%emt 0:00:18]} 17. h3 {[%emt 0:03:05]} Bd7 {[%emt 0:03:41]} 18. Bxd7 {[%emt 0:19:27]} Qxd7 {[%emt 0:00:35] [#]} 19. Ra6 $146 {[%emt 0:01:38]} ({Predecessor:} 19. Qd2 Ra8 20. Nh2 Qc6 21. f4 Rxa1 22. Rxa1 Ra8 23. Rxa8+ Qxa8 24. Qc1 h5 25. Nf3 {½-½ (64) Krzyzanowski,M (2519)-Shuvalova,P (2445) Prague 2020}) 19... Ra8 {[%emt 0:10:41]} 20. Qa1 {[%emt 0:06:13]} Qc8 {[%emt 0:01:37]} 21. Ra7 {[%emt 0:07:31]} Qb8 {[%emt 0:02:25]} 22. Rxa8 {[%emt 0:03:39]} Qxa8 {[%emt 0:00:10]} 23. b3 {[%emt 0:01:39]} Qc6 {[%emt 0:04:40]} 24. Qb2 {[%emt 0:01:40]} Ra8 {[%emt 0:03:22]} 25. Ra1 {[%emt 0:00:15]} Rxa1+ {[%emt 0:05:09]} 26. Qxa1 {[%emt 0:00:02]} g6 {[%emt 0:00:35]} 27. Qd1 {[%emt 0:04:50]} Qa8 {[%emt 0:04:30]} 28. g3 {[%emt 0:00:54]} c5 {[%emt 0:06:39]} 29. Qe2 {[%emt 0:01:51]} h5 {[%emt 0:05:25] The position is equal.} 30. Kg2 {[%emt 0:03:09]} Kg7 {[%emt 0:05:12]} 31. h4 {[%emt 0:01:17]} Qc8 {[%emt 0:01:34]} 32. Nh2 {[%emt 0:01:14]} Qe6 {[%emt 0:05:33]} 33. f4 {[%emt 0:01:28][%cal Bf2f4,Bf4f5][%mdl 32]} Bd8 {[%emt 0:01:36]} 34. Qf3 {[%emt 0:07:59]} c4 {[%emt 0:07:32]} 35. bxc4 {[%emt 0:00:57]} bxc4 {[%emt 0:00:02]} 36. f5 {[%emt 0:00:16]} Qc8 {[%emt 0:00:09]} 37. Kh3 {[%emt 0:04:26]} cxd3 {[%emt 0:01:35]} 38. cxd3 {[%emt 0:00:07]} Qc1 {[%emt 0:02:56]} 39. g4 {[%emt 0:00:47]} Qe3 {[%emt 0:02:43]} 40. gxh5 {[%emt 0:00:00]} gxh5 {[%emt 0:00:00]} 41. Qg3+ {[%emt 0:05:48]} Qxg3+ {[%emt 0:14:10]} 42. Kxg3 $11 {[%emt 0:00:06][%mdl 4096] Endgame KB-KN} d5 {[%emt 0:00:11]} 43. e5 {[%emt 0:04:07][%cal Be4e5,Be5e6,Be6f7][%mdl 32]} Bc7 {[%emt 0:02:04]} 44. f6+ $1 {[%emt 0:00:28]} Kg6 {[%emt 0:00:17]} 45. Kf4 {[%emt 0:00:15]} Ba5 {[%emt 0:01:11] [#] Threatens to win with ...Bd2+.} 46. Nf3 {[%emt 0:08:35] Against Bd2+} Bc3 {[%emt 0:05:48]} 47. e6 $1 {[%emt 0:03:22] e7 would kill now.} Kxf6 {[%emt 0:00:19]} (47... fxe6 $2 48. Ke5 Kf7 49. Ng5+ Kg8 50. Kxe6 $18) 48. exf7 {[%emt 0:00:12]} Bb4 {[%emt 0:04:10] ( -> ...Bd6+)} 49. Nxd4 {[%emt 0:08:29] A balanced but interesting game.  Weighted Error Value: White=0.02 (flawless) /Black=0.02 (flawless)} 1/2-1/2

[Event "3rd Tal Heraklion-IM 2022"]
[Site "Heraklion"]
[Date "2022.04.27"]
[Round "2.1"]
[White "Kotsinis, Alexandros"]
[Black "Peng, Li Min"]
[Result "0-1"]
[ECO "D30"]
[WhiteElo "2055"]
[BlackElo "2517"]
[Annotator "TA"]
[PlyCount "62"]
[EventDate "2022.04.18"]
[EventType "tourn"]
[EventCountry "GRE"]
[SourceTitle "playchess.com"]
[Source "ChessBase"]
[SourceQuality "1"]
[TimeControl "40/5400+30:1800+30"]

{[%evp 9,62,23,27,31,37,45,34,37,37,27,33,40,52,19,21,8,33,16,20,13,16,27,16,20,55,32,61,0,15,0,16,3,13,0,0,0,17,-56,-80,-126,-95,-113,-109,-153,-156,-142,-141,-260,-228,-583,-668,-576,-556,-1935,-1829]} 1. d4 {[%emt 0:00:03]} d5 {[%emt 0:08:21]} 2. c4 {[%emt 0:00:08]} e6 {[%emt 0:00:05]} 3. Nf3 {[%emt 0:00:05]} a6 {[%emt 0:00:13]} 4. g3 {[%emt 0:03:30]} dxc4 {[%emt 0:00:05]} 5. Bg2 {[%emt 0:00:03]} Nc6 {[%emt 0:00:03]} 6. e3 {[%emt 0:07:31] D30: Queen's Gambit Declined: Systems without Nc3.} Rb8 {[%emt 0:07:19]} 7. Nfd2 {[%emt 0:01:39]} Qd7 {[%emt 0:00:23]} 8. Nxc4 {[%emt 0:00:26] White is slightly better.} b5 {[%emt 0:00:07]} 9. Ncd2 {[%emt 0:00:29]} Nf6 {[%emt 0:00:18]} 10. O-O {[%emt 0:01:42]} Bb7 {[%emt 0:00:37] [#]} 11. a4 $146 {[%emt 0:06:52]} ({Predecessor:} 11. Nb3 Nd8 12. f3 Bd5 13. Nc3 Bc4 14. Rf2 Nb7 15. Nd2 Bd5 16. e4 Bc6 17. Nb3 {1-0 (39) Raznikov,D (2500)-Pap,G (2536) Pardubice 2015}) 11... Be7 {[%emt 0:10:48]} 12. axb5 {[%emt 0:02:47]} axb5 {[%emt 0:00:02]} 13. Nc3 {[%emt 0:00:18]} b4 {[%emt 0:00:10]} 14. Nce4 {[%emt 0:08:17]} Nxe4 $1 {[%emt 0:00:18]} 15. Bxe4 {[%emt 0:02:53]} O-O {[%emt 0:00:10]} 16. Nc4 {[%emt 0:18:42]} Ra8 {[%emt 0:07:29]} 17. Rxa8 {[%emt 0:02:59]} Rxa8 {[%emt 0:00:03]} 18. b3 {[%emt 0:01:30]} ({Don't play} 18. Qh5 f5 19. Bg2 Qc8 $11) ({White should play} 18. Qc2 $14) 18... Qc8 {[%emt 0:24:33]} 19. Qc2 {[%emt 0:18:31]} h6 {[%emt 0:00:42]} 20. Bb2 {[%emt 0:01:26]} Na5 {[%emt 0:02:56]} 21. Bh7+ {[%emt 0:09:13]} Kh8 {[%emt 0:01:42]} 22. Ne5 {[%emt 0:01:53][%cal Re5f7] [#]} Qe8 {[%emt 0:00:07]} 23. Ra1 {[%emt 0:02:43]} (23. Be4 $11) 23... Bd6 $1 $15 {[%emt 0:01:33] ...Bxe5 is the strong threat.} ({Resist} 23... Nxb3 24. Rxa8 Bxa8 25. Bd3 $14) 24. Be4 {[%emt 0:02:15]} (24. Bd3 $142) 24... Bxe5 $17 {[%emt 0:00:21]} 25. dxe5 {[%emt 0:04:40]} c5 {[%emt 0:00:17]} 26. Bxb7 {[%emt 0:02:19]} Nxb7 {[%emt 0:00:02]} 27. Rxa8 {[%emt 0:00:34]} Qxa8 {[%emt 0:00:02]} 28. Bc1 {[%emt 0:00:29]} (28. h4 $17 {was called for.}) 28... Qa1 {[%emt 0:00:44] [#] Strongly threatening ...Na5.} 29. f4 $2 {[%emt 0:00:22]} (29. Kg2 {is a better chance.}) 29... Na5 $19 {[%emt 0:00:17][%cal Oa5b3] aiming for ...Nxb3! Black is clearly winning.} 30. Kg2 {[%emt 0:00:32]} Qc3 {[%emt 0:00:26]} 31. Qd1 {[%emt 0:00:14]} Nxb3 {[%emt 0:00:11] Weighted Error Value: White=0.52/Black=0.05 (flawless)} 0-1

[Event "3rd Tal Heraklion-IM 2022"]
[Site "Heraklion"]
[Date "2022.04.27"]
[Round "2.2"]
[White "Milonakis, Georgios"]
[Black "Langrock, Hannes"]
[Result "1-0"]
[ECO "A07"]
[WhiteElo "2215"]
[BlackElo "2351"]
[Annotator "TA"]
[PlyCount "107"]
[EventDate "2022.04.18"]
[EventType "tourn"]
[EventCountry "GRE"]
[SourceTitle "playchess.com"]
[Source "ChessBase"]
[SourceQuality "1"]
[TimeControl "40/5400+30:1800+30"]

{[%evp 9,107,0,8,0,0,0,0,-4,0,-11,-6,-22,3,0,0,0,0,-7,0,0,0,-39,-51,-39,-39,-56,-50,-51,180,0,29,31,35,37,83,33,47,45,78,95,123,121,100,98,266,185,185,184,184,184,184,184,186,186,184,177,185,167,168,179,187,185,234,228,250,253,239,187,195,185,275,54,59,35,44,59,789,789,789,782,775,775,775,692,1098,1045,821,767,2777,2404,29980,29979,29983,29984,29984,29985,29985,29986,29986,29986]} 1. Nf3 {[%emt 0:00:17]} d5 {[%emt 0:00:14]} 2. g3 {[%emt 0:00:29]} Bg4 {[%emt 0:00:14]} 3. Ne5 {[%emt 0:01:30]} Bf5 {[%emt 0:02:00]} 4. Bg2 {[%emt 0:01:36]} Nd7 {[%emt 0:00:41]} 5. d4 {[%emt 0:04:08]} c6 {[%emt 0:08:28]} 6. O-O {[%emt 0:03:28] A07: Réti Opening: New York and Capablanca Systems.} Ngf6 {[%emt 0:03:06]} 7. c4 {[%emt 0:05:20]} e6 $1 {[%emt 0:06:26]} 8. Nxd7 {[%emt 0:05:46] The position is equal.} Qxd7 {[%emt 0:00:00]} (8... Kxd7 9. Nc3 $14) 9. b3 {[%emt 0:02:47]} Be7 {[%emt 0:00:08]} 10. Nd2 {[%emt 0:03:11]} O-O {[%emt 0:01:43]} 11. Bb2 {[%emt 0:00:42] [#]} b5 $146 {[%emt 0:06:06]} ({Predecessor:} 11... a5 12. a3 h6 13. Re1 Rfd8 {½-½ (13) Vuilleumier,A (2368)-Landenbergue,C (2450) Geneve 2007}) 12. c5 {[%emt 0:06:13]} a5 {[%emt 0:05:51]} 13. Kh1 {[%emt 0:08:49]} h6 {[%emt 0:08:25]} 14. f3 {[%emt 0:01:25]} Bh7 {[%emt 0:01:32]} 15. e4 {[%emt 0:01:40]} dxe4 $1 {[%emt 0:05:44]} 16. fxe4 {[%emt 0:03:36]} e5 {[%emt 0:03:58]} 17. d5 {[%emt 0:08:55]} (17. dxe5 Ng4 18. Qe2 Rad8 $17) 17... cxd5 {[%emt 0:17:16]} 18. Bxe5 {[%emt 0:01:23]} Ng4 {[%emt 0:01:34] [#]} ({But not} 18... Bxc5 19. Bxf6 gxf6 20. exd5 $14) (18... Rac8 $1 $15 {stays ahead.} 19. Rc1 d4) 19. Bd4 $2 {[%emt 0:08:44]} (19. c6 $1 $18 {[%cal Rc6d7]} Qc8 20. Bd4) 19... dxe4 {[%emt 0:01:15]} (19... Rac8 $5 {[%cal Re7c5]} 20. Rc1 (20. exd5 Bxc5 21. Ne4 Bxe4 $17) 20... dxe4 21. Nxe4 Rfd8 $11) 20. Nxe4 {[%emt 0:00:21][%cal Oc5c6]} Rad8 {[%emt 0:01:28] White must now prevent ...Bxe4.} 21. Bg1 $1 {[%emt 0:03:23] And now Qxd7 would win.} Ne5 {[%emt 0:07:30]} (21... Qe6 $14 22. Qe2 Ne5) 22. Qe2 {[%emt 0:03:28]} (22. Qxd7 $16 Rxd7 23. Nc3) 22... Qd3 $14 {[%emt 0:02:13]} 23. Qxd3 {[%emt 0:01:28]} Nxd3 {[%emt 0:02:51]} 24. c6 {[%emt 0:00:17]} Rc8 {[%emt 0:05:09]} 25. Rad1 {[%emt 0:01:46]} Nb4 {[%emt 0:03:35]} 26. Nd6 {[%emt 0:02:36] 0x0.0019923d94c2dp-1022s more active pieces.} Rcd8 {[%emt 0:03:06]} (26... Rxc6 $16 {keeps fighting.} 27. Bxc6 (27. Nxb5 Rc2 $11) 27... Nxc6) 27. Nf5 {[%emt 0:10:29]} Bxf5 {[%emt 0:00:24]} 28. Rxd8 {[%emt 0:00:05]} Rxd8 {[%emt 0:01:00]} 29. Rxf5 {[%emt 0:00:06] Strongly threatening c7.} Rc8 {[%emt 0:00:43]} 30. Rxb5 {[%emt 0:02:19] Re5 is the strong threat.} Nxc6 {[%emt 0:00:51]} 31. Bxc6 {[%emt 0:00:19]} Rxc6 {[%emt 0:00:04]} 32. Rxa5 $18 {[%emt 0:00:19][%mdl 4096] Endgame KRB-KRB} Rc3 {[%emt 0:01:54]} 33. Ra8+ {[%emt 0:01:36]} Kh7 {[%emt 0:00:49]} 34. Ra7 {[%emt 0:00:12]} Bf6 {[%emt 0:00:18]} 35. Rxf7 {[%emt 0:02:08]} Kg6 {[%emt 0:00:19]} (35... Rc1 $142) 36. Rd7 {[%emt 0:00:12]} Rc2 {[%emt 0:00:15]} 37. a4 {[%emt 0:00:33]} Ra2 {[%emt 0:00:26]} 38. Rd3 {[%emt 0:01:53]} Kf5 {[%emt 0:00:10]} 39. Bb6 {[%emt 0:01:30]} Kg4 {[%emt 0:00:27]} (39... h5 $142 40. Rd5+ Kg4) 40. Bd4 $2 {[%emt 0:00:00]} ({White should try} 40. a5 $18) 40... Kh3 $1 $14 {[%emt 0:00:00]} 41. Bxf6 {[%emt 0:11:42]} gxf6 {[%emt 0:05:31] KR-KR} 42. Kg1 {[%emt 0:00:59] Hoping for b4.} h5 $2 {[%emt 0:15:00][%mdl 8192]} (42... Rg2+ $14 43. Kf1 Rxh2) 43. Rd4 $18 {[%emt 0:06:55][%csl Gg3][%cal Rd4h4]} Rg2+ {[%emt 0:01:00]} 44. Kf1 {[%emt 0:00:07][%csl Gg3][%cal Rd4h4]} Kxh2 {[%emt 0:00:32] [#]} 45. a5 $1 {[%emt 0:09:46][%cal Ba4a5,Ba5a6,Ba6a7][%mdl 32]} Rg1+ {[%emt 0:02:18]} 46. Ke2 {[%emt 0:00:06] aiming for a6.} Rg2+ {[%emt 0:03:46]} 47. Kd3 {[%emt 0:02:23]} Rxg3+ {[%emt 0:02:38]} 48. Kc4 {[%emt 0:00:09]} Rg5 {[%emt 0:00:58]} 49. b4 {[%emt 0:01:20][%cal Bb3b4,Bb4b5,Bb5b6][%mdl 32] b5 would kill now.} Kg3 {[%emt 0:00:14]} 50. a6 {[%emt 0:00:16] White mates.} h4 {[%emt 0:00:23]} 51. a7 {[%emt 0:00:51]} Rg8 {[%emt 0:00:02]} 52. b5 {[%emt 0:00:44]} h3 {[%emt 0:00:04]} 53. b6 {[%emt 0:01:08]} h2 {[%emt 0:00:04]} 54. Rd1 {[%emt 0:00:10] Weighted Error Value: White=0.23 (precise) /Black=0.37} 1-0